Workbook

Sheet DATALOG
A1: Pressure | B1: Height | C1: amTemp | D1: Dew Point | E1: RH | F1: DRCT | G1: SKNT | H1: THTA | I1: THTE | J1: THTV
A2: 1000 | B2: 123.74 | C2: nan | D2: nan | K2: 20.2 | L2: 22 | M2: 0.01 | N2: -0.1 | O2: 4.11 | P2: 1247
A3: 1000 | B3: 123.24 | C3: 19.9 | D3: 14.38 | K3: 20.2 | L3: 0 | M3: 0.65 | N3: 0.01 | O3: 4.27 | P3: 1247
A4: 1000 | B4: 122.56 | C4: 19.9 | D4: 14.36 | K4: 20.2 | L4: 0 | M4: 0.72 | N4: 0.02 | O4: 4.27 | P4: 1247
A5: 1000 | B5: 123.15 | C5: 19.9 | D5: 14.36 | K5: 20.2 | L5: 0 | M5: 0.69 | N5: 0.02 | O5: 4.27 | P5: 1247
A6: 1000 | B6: 122.65 | C6: 19.9 | D6: 14.34 | K6: 20.2 | L6: 0 | M6: 0.68 | N6: 0.02 | O6: 4.27 | P6: 1247
A7: 1000 | B7: 122.98 | C7: 19.9 | D7: 14.34 | K7: 20.2 | L7: 0 | M7: 0.67 | N7: 0.01 | O7: 4.27 | P7: 1247
A8: 1000 | B8: 123.32 | C8: 19.9 | D8: 14.33 | K8: 20.2 | L8: 0 | M8: 0.63 | N8: 0.01 | O8: 4.27 | P8: 1247
A9: 1000 | B9: 122.65 | C9: 19.9 | D9: 14.33 | K9: 20.2 | L9: 0 | M9: 0.63 | N9: 0.01 | O9: 4.27 | P9: 1247
A10: 1000 | B10: 122.82 | C10: 19.9 | D10: 14.33 | K10: 20.2 | L10: 0 | M10: 0.68 | N10: 0.02 | O10: 4.27 | P10: 1247
A11: 1000 | B11: 123.74 | C11: 19.9 | D11: 14.33 | K11: 20.2 | L11: 0 | M11: 0.68 | N11: 0.02 | O11: 4.27 | P11: 1247
A12: 1000 | B12: 123.24 | C12: 19.9 | D12: 14.33 | K12: 20.2 | L12: 0 | M12: 0.86 | N12: 0.05 | O12: 4.27 | P12: 1247
A13: 1000 | B13: 122.65 | C13: 19.9 | D13: 14.33 | K13: 20.2 | L13: 0 | M13: 0.61 | N13: 0 | O13: 4.27 | P13: 1247
A14: 1000 | B14: 124.16 | C14: 19.9 | D14: 14.31 | K14: 20.2 | L14: 0 | M14: 0.65 | N14: 0.01 | O14: 4.27 | P14: 1247
A15: 1000 | B15: 122.82 | C15: 20 | D15: 14.39 | K15: 20.2 | L15: 0 | M15: 0.64 | N15: 0.01 | O15: 4.27 | P15: 1247
A16: 1000 | B16: 123.24 | C16: 19.9 | D16: 14.31 | K16: 20.1 | L16: 0 | M16: 0.68 | N16: 0.02 | O16: 4.27 | P16: 1247
A17: 1000 | B17: 123.4 | C17: 19.9 | D17: 14.31 | K17: 20.1 | L17: 0 | M17: 0.65 | N17: 0.01 | O17: 4.27 | P17: 1247
A18: 1000 | B18: 123.57 | C18: 19.9 | D18: 14.33 | K18: 20.2 | L18: 0 | M18: 0.69 | N18: 0.02 | O18: 4.27 | P18: 1247
A19: 1000 | B19: 122.9 | C19: 19.9 | D19: 14.33 | K19: 20.1 | L19: 0 | M19: 0.63 | N19: 0.01 | O19: 4.27 | P19: 1247
A20: 1000 | B20: 123.15 | C20: 19.9 | D20: 14.33 | K20: 20.1 | L20: 0 | M20: 0.64 | N20: 0.01 | O20: 4.27 | P20: 1247
A21: 1000 | B21: 122.82 | C21: 19.9 | D21: 14.33 | K21: 20.1 | L21: 0 | M21: 0.65 | N21: 0.01 | O21: 4.27 | P21: 1247
A22: 1000 | B22: 122.9 | C22: 20 | D22: 14.41 | K22: 20.1 | L22: 0 | M22: 0.69 | N22: 0.02 | O22: 4.27 | P22: 1247
A23: 1000 | B23: 122.73 | C23: 19.9 | D23: 14.34 | K23: 20.1 | L23: 0 | M23: 0.67 | N23: 0.01 | O23: 4.27 | P23: 1247
A24: 1000 | B24: 122.9 | C24: 20 | D24: 14.43 | K24: 20.1 | L24: 0 | M24: 0.64 | N24: 0.01 | O24: 4.27 | P24: 1247
A25: 1000 | B25: 122.98 | C25: 20 | D25: 14.43 | K25: 20.1 | L25: 0 | M25: 0.72 | N25: 0.02 | O25: 4.27 | P25: 1247
A26: Pressure | B26: Height | C26: amTemp | D26: Dew Point | E26: RH | F26: DRCT | G26: SKNT | H26: THTA | I26: THTE | J26: THTV
A27: 1000 | B27: 181.35 | C27: 20 | D27: 14.45 | E27: =100*((EXP((17.625*D27)/(243.04+D27))/EXP((17.625*C27)/(243.04+C27)))) -> 70.39777309 | K27: 20.1 | L27: 25 | M27: 0 | N27: -0.1 | O27: 4.14 | P27: 1247
A28: 1000 | B28: 181.19 | C28: 20 | D28: 14.43 | E28: =100*((EXP((17.625*D28)/(243.04+D28))/EXP((17.625*C28)/(243.04+C28)))) -> 70.30685962 | K28: 20.1 | L28: 0 | M28: 0.72 | N28: 0.02 | O28: 4.27 | P28: 1247
A29: 1000 | B29: 181.86 | C29: 20 | D29: 14.43 | E29: 70.30685962 | K29: 20.1 | L29: 0 | M29: 0.69 | N29: 0.02 | O29: 4.27 | P29: 1247
A30: 1000 | B30: 181.19 | C30: 20 | D30: 14.43 | E30: 70.30685962 | K30: 20.1 | L30: 0 | M30: 0.71 | N30: 0.02 | O30: 4.27 | P30: 1247
A31: 1000 | B31: 180.77 | C31: 20 | D31: 14.43 | E31: 70.30685962 | K31: 20.1 | L31: 0 | M31: 0.7 | N31: 0.02 | O31: 4.27 | P31: 1247
A32: 1000 | B32: 181.77 | C32: 20 | D32: 14.43 | E32: 70.30685962 | K32: 20.1 | L32: 0 | M32: 0.59 | N32: 0 | O32: 4.27 | P32: 1247
A33: 1000 | B33: 180.35 | C33: 20 | D33: 14.41 | E33: 70.21604947 | K33: 20.1 | L33: 0 | M33: 0.65 | N33: 0.01 | O33: 4.27 | P33: 1247
A34: 1000 | B34: 181.02 | C34: 20 | D34: 14.41 | E34: 70.21604947 | K34: 20.1 | L34: 0 | M34: 0.67 | N34: 0.01 | O34: 4.11 | P34: 1247
A35: 1000 | B35: 180.51 | C35: 20 | D35: 14.39 | E35: 70.12534252 | K35: 20.1 | L35: 0 | M35: 0.67 | N35: 0.01 | O35: 4.11 | P35: 1247
A36: 1000 | B36: 180.93 | C36: 20 | D36: 14.39 | E36: 70.12534252 | K36: 20.1 | L36: 0 | M36: 0.71 | N36: 0.02 | O36: 4.11 | P36: 1247
A37: 1000 | B37: 181.02 | C37: 20 | D37: 14.37 | E37: 70.03473868 | K37: 20.1 | L37: 0 | M37: 0.65 | N37: 0.01 | O37: 4.11 | P37: 1247
A38: 1000 | B38: 180.51 | C38: 20 | D38: 14.37 | E38: 70.03473868 | K38: 20.1 | L38: 0 | M38: 0.7 | N38: 0.02 | O38: 4.11 | P38: 1247
A39: 1000 | B39: 180.6 | C39: 20 | D39: 14.37 | E39: 70.03473868 | K39: 20.1 | L39: 0 | M39: 0.65 | N39: 0.01 | O39: 4.11 | P39: 1247
A40: 1000 | B40: 181.02 | C40: 20 | D40: 14.37 | E40: 70.03473868 | K40: 20.1 | L40: 0 | M40: 0.62 | N40: 0.01 | O40: 4.11 | P40: 1247
A41: 1000 | B41: 180.77 | C41: 20 | D41: 14.37 | E41: 70.03473868 | K41: 20.1 | L41: 0 | M41: 0.66 | N41: 0.01 | O41: 4.11 | P41: 1247
A42: 1000 | B42: 180.51 | C42: 20 | D42: 14.35 | E42: 69.94423785 | K42: 20.1 | L42: 0 | M42: 0.68 | N42: 0.02 | O42: 4.11 | P42: 1247
A43: 1000 | B43: 180.77 | C43: 20 | D43: 14.35 | E43: 69.94423785 | K43: 20.1 | L43: 0 | M43: 0.66 | N43: 0.01 | O43: 4.11 | P43: 1247
A44: 1000 | B44: 180.6 | C44: 20 | D44: 14.35 | E44: 69.94423785 | K44: 20.1 | L44: 0 | M44: 0.7 | N44: 0.02 | O44: 4.11 | P44: 1247
A45: 1000 | B45: 181.52 | C45: 20 | D45: 14.33 | E45: 69.85383994 | K45: 20.1 | L45: 0 | M45: 0.67 | N45: 0.01 | O45: 4.11 | P45: 1247
A46: 1000 | B46: 180.93 | C46: 20 | D46: 14.33 | E46: 69.85383994 | K46: 20.1 | L46: 0 | M46: 0.65 | N46: 0.01 | O46: 4.11 | P46: 1247
A47: 1000 | B47: 180.77 | C47: 20 | D47: 14.31 | E47: 69.76354483 | K47: 20.1 | L47: 0 | M47: 0.68 | N47: 0.02 | O47: 4.11 | P47: 1247
A48: 1000 | B48: 181.35 | C48: 20 | D48: 14.33 | E48: 69.85383994 | K48: 20.1 | L48: 0 | M48: 0.63 | N48: 0.01 | O48: 4.11 | P48: 1247
A49: 1000 | B49: 181.1 | C49: 20 | D49: 14.33 | E49: 69.85383994 | K49: 20.1 | L49: 0 | M49: 0.66 | N49: 0.01 | O49: 4.11 | P49: 1247
A50: 1000 | B50: 180.68 | C50: 20 | D50: 14.31 | E50: 69.76354483 | K50: 20.1 | L50: 0 | M50: 0.79 | N50: 0.03 | O50: 4.11 | P50: 1247
A51: 1000 | B51: 181.35 | C51: 20 | D51: 14.31 | E51: 69.76354483 | K51: 20.1 | L51: 0 | M51: 0.63 | N51: 0.01 | O51: 4.11 | P51: 1247
A52: 1000 | B52: 181.1 | C52: 20 | D52: 14.31 | E52: 69.76354483 | K52: 20.1 | L52: 0 | M52: 0.63 | N52: 0.01 | O52: 4.11 | P52: 1247
A53: 1000 | B53: 180.77 | C53: 20 | D53: 14.33 | E53: 69.85383994 | K53: 20.1 | L53: 0 | M53: 0.66 | N53: 0.01 | O53: 4.11 | P53: 1247
A54: 1000 | B54: 181.02 | C54: 20 | D54: 14.33 | E54: 69.85383994 | K54: 20.1 | L54: 0 | M54: 0.69 | N54: 0.02 | O54: 4.11 | P54: 1247
A55: 1000 | B55: 181.27 | C55: 20 | D55: 14.35 | E55: 69.94423785 | K55: 20.1 | L55: 0 | M55: 0.63 | N55: 0.01 | O55: 4.11 | P55: 1247
A56: 1000 | B56: 181.1 | C56: 20 | D56: 14.35 | E56: 69.94423785 | K56: 20.1 | L56: 0 | M56: 0.67 | N56: 0.01 | O56: 4.11 | P56: 1247
A57: 1000 | B57: 181.94 | C57: 20 | D57: 14.35 | E57: 69.94423785 | K57: 20.1 | L57: 0 | M57: 0.63 | N57: 0.01 | O57: 4.11 | P57: 1247
A58: 1000 | B58: 181.61 | C58: 20 | D58: 14.35 | E58: 69.94423785 | K58: 20 | L58: 0 | M58: 0.64 | N58: 0.01 | O58: 4.11 | P58: 1247
A59: 1000 | B59: 181.44 | C59: 20 | D59: 14.35 | E59: 69.94423785 | K59: 20.1 | L59: 0 | M59: 0.71 | N59: 0.02 | O59: 4.11 | P59: 1247
A60: 1000 | B60: 181.94 | C60: 20 | D60: 14.33 | E60: 69.85383994 | K60: 20.1 | L60: 0 | M60: 0.68 | N60: 0.02 | O60: 4.11 | P60: 1247
A61: 1000 | B61: 181.27 | C61: 20 | D61: 14.33 | E61: 69.85383994 | K61: 20.1 | L61: 0 | M61: 0.64 | N61: 0.01 | O61: 4.11 | P61: 1247
A62: 1000 | B62: 180.85 | C62: 20 | D62: 14.31 | E62: 69.76354483 | K62: 20 | L62: 0 | M62: 0.66 | N62: 0.01 | O62: 4.11 | P62: 1247
A63: Pressure | B63: Height | C63: amTemp | D63: Dew Point | F63: DRCT | G63: SKNT | H63: THTA | I63: THTE | J63: THTV
A64: 1000 | B64: 180.6 | C64: 20 | D64: 14.31 | E64: 69.76354483 | K64: 20 | L64: 35 | M64: 0 | N64: -0.1 | O64: 4.11 | P64: 1228 | Q64: 1247
A65: 1000 | B65: 181.44 | C65: 20 | D65: 14.33 | E65: 69.85383994 | K65: 20 | L65: 0 | M65: 0.6 | N65: 0 | O65: 4.11 | P65: 4233 | Q65: 1247
A66: 1000 | B66: 180.93 | C66: 20 | D66: 14.37 | E66: 70.03473868 | K66: 20 | L66: 0 | M66: 0.71 | N66: 0.02 | O66: 4.11 | P66: 7231 | Q66: 1247
A67: 1000 | B67: 181.86 | C67: 20 | D67: 14.37 | E67: 70.03473868 | K67: 20 | L67: 0 | M67: 0.65 | N67: 0.01 | O67: 4.11 | P67: 10229 | Q67: 1247
A68: 1000 | B68: 181.61 | C68: 20 | D68: 14.37 | E68: 70.03473868 | K68: 20 | L68: 0 | M68: 0.69 | N68: 0.02 | O68: 4.11 | P68: 13228 | Q68: 1247
A69: 1000 | B69: 181.52 | C69: 20 | D69: 14.37 | E69: 70.03473868 | K69: 20 | L69: 0 | M69: 0.64 | N69: 0.01 | O69: 4.11 | P69: 16228 | Q69: 1247
A70: 1000 | B70: 181.77 | C70: 20 | D70: 14.37 | E70: 70.03473868 | K70: 20 | L70: 0 | M70: 0.72 | N70: 0.02 | O70: 4.11 | P70: 19226 | Q70: 1247
A71: 1000 | B71: 181.1 | C71: 20 | D71: 14.35 | E71: 69.94423785 | K71: 20 | L71: 0 | M71: 0.67 | N71: 0.01 | O71: 4.11 | P71: 22231 | Q71: 1247
A72: 1000 | B72: 181.52 | C72: 20 | D72: 14.35 | E72: 69.94423785 | K72: 20 | L72: 0 | M72: 0.68 | N72: 0.02 | O72: 4.11 | P72: 25229 | Q72: 1247
A73: 1000 | B73: 181.61 | C73: 20 | D73: 14.33 | E73: 69.85383994 | K73: 20 | L73: 0 | M73: 0.66 | N73: 0.01 | O73: 4.11 | P73: 28227 | Q73: 1247
A74: 1000 | B74: 181.86 | C74: 20 | D74: 14.33 | E74: 69.85383994 | K74: 20 | L74: 0 | M74: 0.65 | N74: 0.01 | O74: 4.11 | P74: 31225 | Q74: 1247
A75: 1000 | B75: 182.53 | C75: 20 | D75: 14.33 | E75: 69.85383994 | K75: 20 | L75: 0 | M75: 0.66 | N75: 0.01 | O75: 4.11 | P75: 34226 | Q75: 1247
A76: 1000 | B76: 181.1 | C76: 20 | D76: 14.33 | E76: 69.85383994 | K76: 20 | L76: 0 | M76: 0.67 | N76: 0.01 | O76: 4.11 | P76: 37224 | Q76: 1247
A77: 1000 | B77: 182.11 | C77: 20 | D77: 14.33 | E77: 69.85383994 | K77: 20 | L77: 0 | M77: 0.68 | N77: 0.02 | O77: 4.11 | P77: 40228 | Q77: 1247
A78: 1000 | B78: 182.19 | C78: 20 | D78: 14.33 | E78: 69.85383994 | K78: 20 | L78: 0 | M78: 0.62 | N78: 0.01 | O78: 4.11 | P78: 43227 | Q78: 1247
A79: 1000 | B79: 181.52 | C79: 20 | D79: 14.33 | E79: 69.85383994 | K79: 20 | L79: 0 | M79: 0.7 | N79: 0.02 | O79: 4.11 | P79: 46225 | Q79: 1247
A80: 1000 | B80: 181.52 | C80: 20 | D80: 14.31 | E80: 69.76354483 | K80: 20 | L80: 0 | M80: 0.7 | N80: 0.02 | O80: 4.11 | P80: 49223 | Q80: 1247
A81: 1000 | B81: 181.35 | C81: 20 | D81: 14.29 | E81: 69.67335243 | K81: 20 | L81: 0 | M81: 0.66 | N81: 0.01 | O81: 4.11 | P81: 52224 | Q81: 1247
A82: 1000 | B82: 181.94 | C82: 20 | D82: 14.28 | E82: 69.62829471 | K82: 20 | L82: 0 | M82: 0.71 | N82: 0.02 | O82: 4.12 | P82: 55222 | Q82: 1247
A83: 1000 | B83: 181.52 | C83: 20 | D83: 14.28 | E83: 69.62829471 | K83: 20 | L83: 0 | M83: 0.67 | N83: 0.01 | O83: 4.11 | P83: 58226 | Q83: 1247
A84: 1000 | B84: 182.03 | C84: 20 | D84: 14.29 | E84: 69.67335243 | K84: 20 | L84: 0 | M84: 0.66 | N84: 0.01 | O84: 4.11 | P84: 61224 | Q84: 1247
A85: 1000 | B85: 181.35 | C85: 20 | D85: 14.31 | E85: 69.76354483 | K85: 20 | L85: 0 | M85: 0.62 | N85: 0.01 | O85: 4.11 | P85: 64223 | Q85: 1247
A86: 1000 | B86: 181.61 | C86: 20 | D86: 14.35 | E86: 69.94423785 | K86: 20 | L86: 0 | M86: 0.67 | N86: 0.01 | O86: 4.12 | P86: 67223 | Q86: 1247
A87: 1000 | B87: 182.03 | C87: 20 | D87: 14.37 | E87: 70.03473868 | K87: 20 | L87: 0 | M87: 0.64 | N87: 0.01 | O87: 4.11 | P87: 70221 | Q87: 1247
A88: 1000 | B88: 181.86 | C88: 20 | D88: 14.37 | E88: 70.03473868 | K88: 20 | L88: 0 | M88: 0.65 | N88: 0.01 | O88: 4.11 | P88: 73226 | Q88: 1247
A89: 1000 | B89: 181.19 | C89: 20 | D89: 14.39 | E89: 70.12534252 | K89: 20 | L89: 0 | M89: 0.66 | N89: 0.01 | O89: 4.11 | P89: 76224 | Q89: 1247
A90: 1000 | B90: 181.69 | C90: 20 | D90: 14.39 | E90: 70.12534252 | K90: 20 | L90: 0 | M90: 0.65 | N90: 0.01 | O90: 4.12 | P90: 79222 | Q90: 1247
A91: 1000 | B91: 181.35 | C91: 20 | D91: 14.39 | E91: 70.12534252 | K91: 20 | L91: 0 | M91: 0.7 | N91: 0.02 | O91: 4.11 | P91: 82221 | Q91: 1247
A92: 1000 | B92: 182.03 | C92: 20 | D92: 14.37 | E92: =100*((EXP((17.625*D92)/(243.04+D92))/EXP((17.625*C92)/(243.04+C92)))) -> 70.03473868 | K92: 20 | L92: 0 | M92: 0.65 | N92: 0.01 | O92: 4.12 | P92: 85221 | Q92: 1247
A93: 1000 | B93: 182.03 | C93: 20 | D93: 14.37 | E93: 70.03473868 | K93: 20 | L93: 0 | M93: 0.64 | N93: 0.01 | O93: 4.12 | P93: 88219 | Q93: 1247
A94: 1000 | B94: 181.61 | C94: 20 | D94: 14.37 | E94: 70.03473868 | K94: 20 | L94: 0 | M94: 0.69 | N94: 0.02 | O94: 4.12 | P94: 91222 | Q94: 1247
A95: 1000 | B95: 181.94 | C95: 20 | D95: 14.37 | E95: 70.03473868 | K95: 20 | L95: 0 | M95: 0.68 | N95: 0.02 | O95: 4.12 | P95: 94222 | Q95: 1247
A96: 1000 | B96: 181.61 | C96: 20 | D96: 14.37 | E96: 70.03473868 | K96: 20 | L96: 0 | M96: 0.67 | N96: 0.01 | O96: 4.12 | P96: 97220 | Q96: 1247
A97: 1000 | B97: 181.94 | C97: 20 | D97: 14.37 | E97: 70.03473868 | K97: 20 | L97: 0 | M97: 0.69 | N97: 0.02 | O97: 4.12 | P97: 100218 | Q97: 1247
A98: 1000 | B98: 181.61 | C98: 20 | D98: 14.37 | E98: 70.03473868 | K98: 20 | L98: 0 | M98: 0.63 | N98: 0.01 | O98: 4.11 | P98: 103217 | Q98: 1247
A99: 1000 | B99: 181.94 | C99: 20 | D99: 14.37 | E99: 70.03473868 | K99: 20 | L99: 0 | M99: 0.7 | N99: 0.02 | O99: 4.12 | P99: 106217 | Q99: 1247
A100: 1000 | B100: 181.86 | C100: 20 | D100: 14.39 | E100: 70.12534252 | K100: 20 | L100: 0 | M100: 0.69 | N100: 0.02 | O100: 4.12 | P100: 109221 | Q100: 1247
A101: 1000 | B101: 182.11 | C101: 20 | D101: 14.39 | E101: 70.12534252 | K101: 20 | L101: 0 | M101: 0.65 | N101: 0.01 | O101: 4.12 | P101: 112220 | Q101: 1247
A102: 1000 | B102: 181.86 | C102: 20 | D102: 14.37 | E102: 70.03473868 | K102: 19.9 | L102: 0 | M102: 0.71 | N102: 0.02 | O102: 4.12 | P102: 115228 | Q102: 1247
A103: 1000 | B103: 182.11 | C103: 20 | D103: 14.37 | E103: 70.03473868 | K103: 20 | L103: 0 | M103: 0.85 | N103: 0.04 | O103: 4.12 | P103: 118226 | Q103: 1247
A104: 1000 | B104: 181.61 | C104: 20 | D104: 14.37 | E104: 70.03473868 | K104: 20 | L104: 0 | M104: 0.63 | N104: 0.01 | O104: 4.12 | P104: 121223 | Q104: 1247
A105: 1000 | B105: 181.77 | C105: 20 | D105: 14.37 | E105: 70.03473868 | K105: 20 | L105: 0 | M105: 0.63 | N105: 0.01 | O105: 4.12 | P105: 124221 | Q105: 1247
A106: 1000 | B106: 181.19 | C106: 20 | D106: 14.37 | E106: 70.03473868 | K106: 20 | L106: 0 | M106: 0.68 | N106: 0.02 | O106: 4.12 | P106: 127223 | Q106: 1247
A107: 1000 | B107: 181.1 | C107: 20 | D107: 14.37 | E107: 70.03473868 | K107: 20 | L107: 0 | M107: 0.66 | N107: 0.01 | O107: 4.12 | P107: 130222 | Q107: 1247
A108: 1000 | B108: 181.94 | C108: 19.9 | D108: 14.29 | E108: 70.1062057 | K108: 20 | L108: 0 | M108: 0.68 | N108: 0.02 | O108: 4.12 | P108: 133220 | Q108: 1247
A109: 1000 | B109: 181.94 | C109: 20 | D109: 14.37 | E109: 70.03473868 | K109: 20 | L109: 0 | M109: 0.66 | N109: 0.01 | O109: 4.12 | P109: 136216 | Q109: 1247
A110: 1000 | B110: 181.94 | C110: 19.9 | D110: 14.29 | E110: 70.1062057 | K110: 19.9 | L110: 0 | M110: 0.67 | N110: 0.01 | O110: 4.11 | P110: 139214 | Q110: 1247
A111: 1000 | B111: 182.61 | C111: 19.9 | D111: 14.27 | E111: 70.01555622 | K111: 20 | L111: 0 | M111: 0.71 | N111: 0.02 | O111: 4.12 | P111: 142213 | Q111: 1247
A112: 1000 | B112: 182.28 | C112: 19.9 | D112: 14.27 | E112: 70.01555622 | K112: 20 | L112: 0 | M112: 0.73 | N112: 0.02 | O112: 4.12 | P112: 145215 | Q112: 1247
A113: 1000 | B113: 182.53 | C113: 19.9 | D113: 14.27 | E113: 70.01555622 | K113: 19.9 | L113: 0 | M113: 0.65 | N113: 0.01 | O113: 4.12 | P113: 148213 | Q113: 1247
A114: 1000 | B114: 182.36 | C114: 19.9 | D114: 14.27 | E114: 70.01555622 | K114: 20 | L114: 0 | M114: 0.63 | N114: 0.01 | O114: 4.12 | P114: 151212 | Q114: 1247
A115: 1000 | B115: 182.78 | C115: 19.9 | D115: 14.25 | E115: 69.92500989 | K115: 19.9 | L115: 0 | M115: 0.61 | N115: 0 | O115: 4.12 | P115: 154210 | Q115: 1247
A116: 1000 | B116: 182.78 | C116: 19.9 | D116: 14.25 | E116: 69.92500989 | K116: 20 | L116: 0 | M116: 0.63 | N116: 0.01 | O116: 4.12 | P116: 157206 | Q116: 1247
A117: 1000 | B117: 182.03 | C117: 19.9 | D117: 14.25 | E117: 69.92500989 | K117: 19.9 | L117: 0 | M117: 0.66 | N117: 0.01 | O117: 4.12 | P117: 160204 | Q117: 1247
A118: 1000 | B118: 183.03 | C118: 19.9 | D118: 14.25 | E118: 69.92500989 | K118: 19.9 | L118: 0 | M118: 0.73 | N118: 0.02 | O118: 4.12 | P118: 166520 | Q118: 1247
A119: 1000 | B119: 182.45 | C119: 19.9 | D119: 14.25 | E119: 69.92500989 | K119: 19.9 | L119: 0 | M119: 0.62 | N119: 0 | O119: 4.09 | P119: 183533 | Q119: 1247
A120: 1000 | B120: 182.7 | C120: 19.9 | D120: 14.25 | E120: 69.92500989 | K120: 19.9 | L120: 0 | M120: 0.66 | N120: 0.01 | O120: 4.09 | P120: 200548 | Q120: 1247
A121: 1000 | B121: 182.45 | C121: 19.9 | D121: 14.36 | E121: 70.42429262 | K121: 19.9 | L121: 0 | M121: 0.69 | N121: 0.02 | O121: 4.09 | P121: 217561 | Q121: 1247
A122: 1000 | B122: 182.28 | C122: 19.9 | D122: 14.36 | E122: 70.42429262 | K122: 20 | L122: 0 | M122: 0.65 | N122: 0.01 | O122: 4.09 | P122: 234575 | Q122: 1247
A123: 1000 | B123: 182.7 | C123: 19.9 | D123: 14.34 | E123: 70.33328133 | K123: 20 | L123: 0 | M123: 0.72 | N123: 0.02 | O123: 4.09 | P123: 251594 | Q123: 1247
A124: 1000 | B124: 182.7 | C124: 19.8 | D124: 14.34 | E124: 70.77056801 | K124: 20 | L124: 0 | M124: 0.69 | N124: 0.02 | O124: 4.09 | P124: 268607 | Q124: 1247
A125: 1000 | B125: 181.77 | C125: 19.8 | D125: 14.41 | E125: 71.09154427 | K125: 20 | L125: 0 | M125: 0.63 | N125: 0.01 | O125: 4.09 | P125: 285622 | Q125: 1247
A126: 1000 | B126: 182.19 | C126: 19.8 | D126: 14.37 | E126: 70.9079728 | K126: 20 | L126: 0 | M126: 0.79 | N126: 0.03 | O126: 4.09 | P126: 302635 | Q126: 1247
A127: 1000 | B127: 182.45 | C127: 19.8 | D127: 14.32 | E127: 70.67909501 | K127: 20 | L127: 0 | M127: 0.63 | N127: 0.01 | O127: 4.09 | P127: 319649 | Q127: 1247
A128: 1000 | B128: 182.19 | C128: 19.8 | D128: 14.28 | E128: 70.49646105 | K128: 20 | L128: 0 | M128: 0.61 | N128: 0 | O128: 4.09 | P128: 336662 | Q128: 1247
A129: 999 | B129: 183.03 | C129: 19.8 | D129: 14.3 | E129: 70.58772606 | K129: 20 | L129: 0 | M129: 0.68 | N129: 0.02 | O129: 4.09 | P129: 353681 | Q129: 1247
A130: 1000 | B130: 183.45 | C130: 19.9 | D130: 14.4 | E130: 70.60662609 | K130: 20 | L130: 0 | M130: 0.66 | N130: 0.01 | O130: 4.09 | P130: 370696 | Q130: 1247
A131: 1000 | B131: 182.11 | C131: 19.9 | D131: 14.48 | E131: 70.97253945 | K131: 20.1 | L131: 0 | M131: 0.61 | N131: 0 | O131: 4.09 | P131: 387708 | Q131: 1247
A132: 1000 | B132: 182.28 | C132: 20 | D132: 14.52 | E132: 70.71678524 | K132: 20.1 | L132: 0 | M132: 0.63 | N132: 0.01 | O132: 4.09 | P132: 404723 | Q132: 1247
A133: 1000 | B133: 182.87 | C133: 20 | D133: 14.47 | E133: 70.48878997 | K133: 20.1 | L133: 0 | M133: 0.69 | N133: 0.02 | O133: 4.09 | P133: 421736 | Q133: 1247
A134: 1000 | B134: 182.28 | C134: 20 | D134: 14.39 | E134: 70.12534252 | K134: 20.1 | L134: 1 | M134: 0.67 | N134: 0.01 | O134: 4.09 | P134: 438751 | Q134: 1247
A135: 1000 | B135: 181.61 | C135: 20 | D135: 14.45 | E135: 70.39777309 | K135: 20.1 | L135: 0 | M135: 0.68 | N135: 0.02 | O135: 4.09 | P135: 455770 | Q135: 1247
A136: 1000 | B136: 181.94 | C136: 20 | D136: 14.39 | E136: 70.12534252 | K136: 20.1 | L136: 0 | M136: 0.69 | N136: 0.02 | O136: 4.09 | P136: 472782 | Q136: 1247
A137: 1000 | B137: 181.61 | C137: 20 | D137: 14.41 | E137: 70.21604947 | K137: 20.1 | L137: 0 | M137: 0.7 | N137: 0.02 | O137: 4.09 | P137: 489797 | Q137: 1247
A138: 1000 | B138: 181.61 | C138: 20 | D138: 14.45 | E138: 70.39777309 | K138: 20.1 | L138: 0 | M138: 0.68 | N138: 0.02 | O138: 4.09 | P138: 506810 | Q138: 1247
A139: 1000 | B139: 181.77 | C139: 20 | D139: 14.47 | E139: 70.48878997 | K139: 20.1 | L139: 0 | M139: 0.64 | N139: 0.01 | O139: 4.09 | P139: 523825 | Q139: 1247
A140: 1000 | B140: 181.94 | C140: 20 | D140: 14.52 | E140: 70.71678524 | K140: 20.1 | L140: 0 | M140: 0.61 | N140: 0 | O140: 4.09 | P140: 540837 | Q140: 1247
A141: 1000 | B141: 181.86 | C141: 20 | D141: 14.49 | E141: 70.57991035 | K141: 20.1 | L141: 0 | M141: 0.77 | N141: 0.03 | O141: 4.09 | P141: 557856 | Q141: 1247
A142: 1000 | B142: 182.11 | C142: 20 | D142: 14.43 | E142: 70.30685962 | K142: 20.1 | L142: 0 | M142: 0.63 | N142: 0.01 | O142: 4.09 | P142: 574871 | Q142: 1247
A143: 1000 | B143: 181.69 | C143: 20 | D143: 14.41 | E143: 70.21604947 | K143: 20.2 | L143: 0 | M143: 0.66 | N143: 0.01 | O143: 4.09 | P143: 591884 | Q143: 1247
A144: 1000 | B144: 181.61 | C144: 20 | D144: 14.41 | E144: 70.21604947 | K144: 20.1 | L144: 1 | M144: 0.64 | N144: 0.01 | O144: 4.09 | P144: 608899 | Q144: 1247
A145: 1000 | B145: 182.19 | C145: 20 | D145: 14.37 | E145: 70.03473868 | K145: 20.1 | L145: 1 | M145: 0.69 | N145: 0.02 | O145: 4.09 | P145: 625911 | Q145: 1247
A146: 1000 | B146: 182.11 | C146: 20 | D146: 14.39 | E146: 70.12534252 | K146: 20.1 | L146: 1 | M146: 0.8 | N146: 0.04 | O146: 4.09 | P146: 632731 | Q146: 1247
A147: 1000 | B147: 182.28 | C147: 20 | D147: 14.43 | E147: 70.30685962 | K147: 20.1 | L147: 1 | M147: 0.73 | N147: 0.02 | O147: 4.11 | P147: 645928 | Q147: 1247
A148: 1000 | B148: 181.77 | C148: 20 | D148: 14.45 | E148: 70.39777309 | K148: 20.2 | L148: 1 | M148: 0.67 | N148: 0.01 | O148: 4.11 | P148: 662943 | Q148: 1247
A149: 1000 | B149: 182.11 | C149: 20 | D149: 14.45 | E149: 70.39777309 | K149: 20.2 | L149: 1 | M149: 0.7 | N149: 0.02 | O149: 4.11 | P149: 679958 | Q149: 1247
A150: 1000 | B150: 182.95 | C150: 20 | D150: 14.45 | E150: 70.39777309 | K150: 20.2 | L150: 0 | M150: 0.63 | N150: 0.01 | O150: 4.11 | P150: 696973 | Q150: 1247
A151: 1000 | B151: 181.77 | C151: 20 | D151: 14.47 | E151: 70.48878997 | K151: 20.2 | L151: 1 | M151: 0.74 | N151: 0.03 | O151: 4.11 | P151: 713988 | Q151: 1247
A152: 1000 | B152: 181.94 | C152: 20.1 | D152: 14.61 | E152: 70.6899777 | K152: 20.2 | L152: 0 | M152: 0.69 | N152: 0.02 | O152: 4.11 | P152: 731002 | Q152: 1247
A153: 1000 | B153: 181.94 | C153: 20.1 | D153: 14.59 | E153: 70.59880015 | K153: 20.3 | L153: 0 | M153: 0.65 | N153: 0.01 | O153: 4.11 | P153: 748021 | Q153: 1247
A154: 1000 | B154: 181.35 | C154: 20.1 | D154: 14.59 | E154: 70.59880015 | K154: 20.2 | L154: 0 | M154: 0.63 | N154: 0.01 | O154: 4.11 | P154: 765046 | Q154: 1247
A155: 1000 | B155: 181.61 | C155: 20.1 | D155: 14.51 | E155: 70.23512369 | K155: 20.2 | L155: 0 | M155: 0.64 | N155: 0.01 | O155: 4.11 | P155: 782061 | Q155: 1247
A156: 1000 | B156: 182.36 | C156: 20.1 | D156: 14.59 | E156: =100*((EXP((17.625*D156)/(243.04+D156))/EXP((17.625*C156)/(243.04+C156)))) -> 70.59880015 | K156: 20.2 | L156: 0 | M156: 0.71 | N156: 0.02 | O156: 4.12 | P156: 799076 | Q156: 1247
A157: 1000 | B157: 182.53 | C157: 20.1 | D157: 14.67 | E157: 70.96413219 | K157: 20.2 | L157: 0 | M157: 0.68 | N157: 0.02 | O157: 4.12 | P157: 816091 | Q157: 1247
A158: 1000 | B158: 182.36 | C158: 20.1 | D158: 14.65 | E158: 70.87264362 | K158: 20.3 | L158: 0 | M158: 0.65 | N158: 0.01 | O158: 4.12 | P158: 833120 | Q158: 1247
A159: 1000 | B159: 182.28 | C159: 20.2 | D159: 14.65 | E159: 70.43572091 | K159: 20.3 | L159: 0 | M159: 0.64 | N159: 0.01 | O159: 4.12 | P159: 850135 | Q159: 1247
A160: 1000 | B160: 182.19 | C160: 20.2 | D160: 14.62 | E160: 70.29952743 | K160: 20.3 | L160: 0 | M160: 0.68 | N160: 0.02 | O160: 4.12 | P160: 867149 | Q160: 1247
A161: 1000 | B161: 182.36 | C161: 20.3 | D161: 14.74 | E161: 70.40926912 | K161: 20.4 | L161: 0 | M161: 0.59 | N161: 0 | O161: 4.12 | P161: 884164 | Q161: 1247
A162: 1000 | B162: 182.36 | C162: 20.3 | D162: 14.8 | E162: 70.6820591 | K162: 20.4 | L162: 0 | M162: 0.69 | N162: 0.02 | O162: 4.12 | P162: 901179 | Q162: 1247
A163: 1000 | B163: 182.53 | C163: 20.4 | D163: 14.88 | E163: 70.60988886 | K163: 20.4 | L163: 0 | M163: 0.7 | N163: 0.02 | O163: 4.12 | P163: 918194 | Q163: 1247
A164: 1000 | B164: 181.94 | C164: 20.4 | D164: 14.78 | E164: 70.15649804 | K164: 20.5 | L164: 0 | M164: 0.7 | N164: 0.02 | O164: 4.12 | P164: 935215 | Q164: 1247
A165: 1000 | B165: 181.69 | C165: 20.5 | D165: 14.81 | E165: 69.85988419 | K165: 20.5 | L165: 0 | M165: 0.66 | N165: 0.01 | O165: 4.12 | P165: 952229 | Q165: 1247
A166: 1000 | B166: 181.94 | C166: 20.5 | D166: 14.75 | E166: 69.59028819 | K166: 20.5 | L166: 0 | M166: 0.62 | N166: 0.01 | O166: 4.12 | P166: 969244 | Q166: 1247
A167: 1000 | B167: 182.03 | C167: 20.5 | D167: 14.75 | E167: 69.59028819 | K167: 20.5 | L167: 0 | M167: 0.66 | N167: 0.01 | O167: 4.12 | P167: 986259 | Q167: 1247
A168: 1000 | B168: 181.77 | C168: 20.5 | D168: 14.66 | E168: 69.1876101 | K168: 20.6 | L168: 0 | M168: 0.68 | N168: 0.02 | O168: 4.12 | P168: 1003274 | Q168: 1247
A169: 1000 | B169: 182.28 | C169: 20.5 | D169: 14.6 | E169: 68.92029811 | K169: 20.6 | L169: 0 | M169: 0.63 | N169: 0.01 | O169: 4.12 | P169: 1020289 | Q169: 1247
A170: 1000 | B170: 181.86 | C170: 20.5 | D170: 14.6 | E170: 68.92029811 | K170: 20.6 | L170: 0 | M170: 0.68 | N170: 0.02 | O170: 4.12 | P170: 1037307 | Q170: 1247
A171: 1000 | B171: 181.52 | C171: 20.5 | D171: 14.64 | E171: 69.09840494 | K171: 20.6 | L171: 0 | M171: 0.69 | N171: 0.02 | O171: 4.12 | P171: 1054322 | Q171: 1247
A172: 1000 | B172: 182.03 | C172: 20.6 | D172: 14.74 | E172: 69.11800019 | K172: 20.6 | L172: 0 | M172: 0.65 | N172: 0.01 | O172: 4.12 | P172: 1071337 | Q172: 1247
A173: 1000 | B173: 182.95 | C173: 20.6 | D173: 14.84 | E173: 69.56481871 | K173: 20.7 | L173: 0 | M173: 0.63 | N173: 0.01 | O173: 4.13 | P173: 1088352 | Q173: 1247
A174: 1000 | B174: 181.44 | C174: 20.6 | D174: 14.84 | E174: 69.56481871 | K174: 20.7 | L174: 0 | M174: 0.64 | N174: 0.01 | O174: 4.12 | P174: 1105367 | Q174: 1247
A175: 1000 | B175: 181.69 | C175: 20.6 | D175: 14.76 | E175: 69.20716138 | K175: 20.7 | L175: 0 | M175: 0.67 | N175: 0.01 | O175: 4.13 | P175: 1122381 | Q175: 1247
A176: 1000 | B176: 182.11 | C176: 20.6 | D176: 14.68 | E176: 68.85112257 | K176: 20.7 | L176: 0 | M176: 0.62 | N176: 0 | O176: 4.13 | P176: 1139402 | Q176: 1247
A177: 1000 | B177: 182.45 | C177: 20.6 | D177: 14.68 | E177: 68.85112257 | K177: 20.7 | L177: 0 | M177: 0.65 | N177: 0.01 | O177: 4.13 | P177: 1156417 | Q177: 1247
A178: 1000 | B178: 181.52 | C178: 20.6 | D178: 14.68 | E178: 68.85112257 | K178: 20.7 | L178: 0 | M178: 0.67 | N178: 0.01 | O178: 4.13 | P178: 1173432 | Q178: 1247
A179: 1000 | B179: 181.77 | C179: 20.6 | D179: 14.6 | E179: 68.49669601 | K179: 20.7 | L179: 0 | M179: 0.64 | N179: 0.01 | O179: 4.13 | P179: 1190447 | Q179: 1247
A180: 1000 | B180: 181.69 | C180: 20.6 | D180: 14.64 | E180: 68.67370815 | K180: 20.7 | L180: 0 | M180: 0.63 | N180: 0.01 | O180: 4.13 | P180: 1207461 | Q180: 1247
A181: 1000 | B181: 182.03 | C181: 20.6 | D181: 14.8 | E181: 69.38578734 | K181: 20.7 | L181: 0 | M181: 0.63 | N181: 0.01 | O181: 4.13 | P181: 1224480 | Q181: 1247
A182: 1000 | B182: 181.69 | C182: 20.6 | D182: 14.78 | E182: 69.29642373 | K182: 20.7 | L182: 0 | M182: 0.65 | N182: 0.01 | O182: 4.13 | P182: 1241495 | Q182: 1247
A183: 1000 | B183: 182.36 | C183: 20.6 | D183: 14.7 | E183: 68.93998088 | K183: 20.7 | L183: 0 | M183: 0.72 | N183: 0.02 | O183: 4.13 | P183: 1258510 | Q183: 1247
A184: 1000 | B184: 182.7 | C184: 20.6 | D184: 14.66 | E184: 68.76236502 | K184: 20.7 | L184: 0 | M184: 0.67 | N184: 0.01 | O184: 4.13 | P184: 1275525 | Q184: 1247
A185: 1000 | B185: 182.53 | C185: 20.6 | D185: 14.68 | E185: 68.85112257 | K185: 20.7 | L185: 0 | M185: 0.71 | N185: 0.02 | O185: 4.13 | P185: 1292539 | Q185: 1247
A186: 999 | B186: 182.45 | C186: 20.6 | D186: 14.66 | E186: 68.76236502 | K186: 20.7 | L186: 0 | M186: 0.7 | N186: 0.02 | O186: 4.13 | P186: 1309554 | Q186: 1247
A187: 999 | B187: 182.61 | C187: 20.6 | D187: 14.68 | E187: 68.85112257 | K187: 20.7 | L187: 0 | M187: 0.64 | N187: 0.01 | O187: 4.13 | P187: 1326575 | Q187: 1247
A188: 1000 | B188: 182.45 | C188: 20.6 | D188: 14.68 | E188: 68.85112257 | K188: 20.7 | L188: 0 | M188: 0.67 | N188: 0.01 | O188: 4.13 | P188: 1343590 | Q188: 1247
A189: 1000 | B189: 182.11 | C189: 20.6 | D189: 14.68 | E189: 68.85112257 | K189: 20.7 | L189: 0 | M189: 0.68 | N189: 0.02 | O189: 4.13 | P189: 1360605 | Q189: 1247
A190: 1000 | B190: 182.28 | C190: 20.6 | D190: 14.66 | E190: 68.76236502 | K190: 20.7 | L190: 0 | M190: 0.64 | N190: 0.01 | O190: 4.13 | P190: 1377619 | Q190: 1247
A191: 1000 | B191: 182.19 | C191: 20.6 | D191: 14.6 | E191: 68.49669601 | K191: 20.8 | L191: 0 | M191: 0.68 | N191: 0.02 | O191: 4.13 | P191: 1394634 | Q191: 1247
A192: 1000 | B192: 182.7 | C192: 20.6 | D192: 14.59 | E192: 68.45250574 | K192: 20.8 | L192: 0 | M192: 0.63 | N192: 0.01 | O192: 4.13 | P192: 1411649 | Q192: 1247
A193: 1000 | B193: 182.28 | C193: 20.6 | D193: 14.6 | E193: 68.49669601 | K193: 20.8 | L193: 0 | M193: 0.66 | N193: 0.01 | O193: 4.13 | P193: 1428668 | Q193: 1247
A194: 1000 | B194: 182.95 | C194: 20.6 | D194: 14.55 | E194: 68.27599535 | K194: 20.8 | L194: 0 | M194: 0.66 | N194: 0.01 | O194: 4.13 | P194: 1445683 | Q194: 1247
A195: 1000 | B195: 182.95 | C195: 20.6 | D195: 14.55 | E195: 68.27599535 | K195: 20.8 | L195: 0 | M195: 0.65 | N195: 0.01 | O195: 4.13 | P195: 1462697 | Q195: 1247
A196: 1000 | B196: 183.45 | C196: 20.6 | D196: 14.6 | E196: 68.49669601 | K196: 20.9 | L196: 0 | M196: 0.68 | N196: 0.02 | O196: 4.13 | P196: 1479712 | Q196: 1247
A197: 1000 | B197: 182.03 | C197: 20.6 | D197: 14.66 | E197: 68.76236502 | K197: 20.9 | L197: 0 | M197: 0.58 | N197: 0 | O197: 4.13 | P197: 1496983 | Q197: 1247
A198: 1000 | B198: 181.69 | C198: 20.6 | D198: 14.66 | E198: 68.76236502 | K198: 20.9 | L198: 0 | M198: 0.6 | N198: 0 | O198: 4.13 | P198: 1513998 | Q198: 1247
A199: 1000 | B199: 182.28 | C199: 20.6 | D199: 14.62 | E199: 68.58515184 | K199: 20.9 | L199: 0 | M199: 0.65 | N199: 0.01 | O199: 4.13 | P199: 1531017 | Q199: 1247
A200: 1000 | B200: 182.19 | C200: 20.6 | D200: 14.66 | E200: 68.76236502 | K200: 21 | L200: 0 | M200: 0.67 | N200: 0.01 | O200: 4.13 | P200: 1548032 | Q200: 1247
... 745 more rows
